bitfinex/quotes_ETHUSD_20250806
["timestamp","ask_amount","ask_price","bid_price","bid_amount"]
[1754441513477,0.9487,3574.0,3573.7,2.79815912]
[1754441513993,4.407,3574.1,3573.9,2.79804198]
[1754441514356,0.9487,3574.0,3573.7,2.79816462]
[1754441514542,0.9487,3573.9,3573.2,3.0]
[1754441514742,4.407,3574.1,3574.0,2.79798545]
[1754441514943,0.001,3574.1,3574.0,2.79798545]
[1754441515143,1.4154,3574.1,3573.2,3.0]
[1754441515339,1.4144,3574.0,3573.5,2.79832327]
[1754441515591,1.4144,3573.9,3573.6,2.79826272]
[1754441515792,0.001,3574.1,3573.6,2.79826272]
[1754441516011,0.001,3574.1,3573.6,0.27982627]
[1754441516205,0.001,3574.1,3574.0,2.79798545]
[1754441516411,0.9497,3574.1,3573.7,2.79815915]
[1754441516713,0.9497,3574.1,3573.1,7.20169021]
[1754441516714,0.001,3574.1,3574.0,2.79798545]
[1754441516855,4.405,3574.1,3574.0,3.077784]
[1754441517056,4.405,3574.1,3574.0,2.79798545]
[1754441518300,0.001,3574.1,3574.0,2.79798545]
[1754441519788,0.001,3574.4,3574.3,2.7977506]
[1754441520692,0.001,3574.4,3574.3,2.8937506]
[1754441520866,0.001,3574.4,3574.3,4.08700836]
[1754441521216,0.001,3574.4,3574.3,4.18300836]
[1754441521377,0.001,3574.4,3574.3,7.18300836]
[1754441521901,1e-08,3574.5,3574.4,2.79767233]
[1754441522194,1e-08,3574.5,3574.4,12.09091822]
[1754441522399,0.001,3575.0,3574.4,12.09091822]
[1754441522700,1e-08,3575.0,3574.9,6.34728104]
[1754441522994,1e-08,3575.0,3574.9,10.89428104]
[1754441523193,1e-08,3575.0,3574.9,12.2795388]
[1754441524008,1e-08,3575.0,3574.9,11.6335388]
[1754441525109,1e-08,3575.0,3574.9,7.2265388]
[1754441525276,1e-08,3575.0,3574.9,11.6315388]
[1754441529230,1e-08,3575.0,3574.9,12.1375388]
[1754441529410,0.001,3575.2,3575.1,3.34712455]
[1754441529722,0.001,3575.2,3575.1,11.99037044]
[1754441530778,0.001,3575.2,3575.1,12.08637044]
[1754441531003,0.001,3575.2,3575.1,11.99037044]
[1754441532020,0.001,3575.2,3575.1,12.08637044]
[1754441532427,0.2264,3576.0,3575.9,2.79649878]
[1754441532721,0.2264,3576.0,3575.9,7.47514866]
[1754441532922,1e-08,3576.0,3575.9,10.47514866]
[1754441533220,1e-08,3576.0,3575.9,11.02514866]
[1754441533593,0.001,3576.7,3575.9,11.02514866]
[1754441533594,0.001,3576.7,3576.6,2.79595146]
[1754441533789,0.001,3576.7,3576.6,7.19395146]
[1754441534630,0.001,3576.7,3576.6,8.1929508]
[1754441539100,0.04,3576.9,3576.8,2.79579512]
[1754441539291,1.0144,3577.6,3577.5,2.79524807]
[1754441539836,1.0144,3577.6,3577.5,2.93524807]
[1754441540043,1.4615,3577.6,3577.5,2.93524807]
[1754441542413,1.0144,3577.6,3577.5,2.93524807]
[1754441542606,1.5015,3577.9,3577.8,2.79501369]
[1754441542830,0.04,3577.9,3577.8,2.93501369]
[1754441543037,0.04,3577.9,3577.8,7.32001369]
[1754441543190,0.04,3577.9,3577.8,8.56986812]
[1754441543395,1.0144,3578.5,3578.4,2.79454504]
[1754441543732,0.18,3578.9,3578.7,2.79425348]
[1754441544033,0.18,3578.9,3578.4,2.79449203]
[1754441544329,0.14,3578.6,3578.3,2.79459664]
[1754441544535,1.4615,3578.5,3578.3,2.79459664]
[1754441544686,0.14,3578.6,3578.4,2.79453239]
[1754441545315,0.14,3578.6,3578.5,2.79446695]
[1754441545535,1.0144,3578.6,3578.5,2.93446695]
[1754441545832,1.4615,3578.6,3578.3,2.79457302]
[1754441546033,0.4471,3578.5,3578.3,2.79457302]
[1754441546421,1.4615,3578.5,3578.3,2.79457302]
[1754441546734,1.4615,3578.4,3578.3,2.79462314]
[1754441548130,0.5881,3578.7,3578.6,2.79438886]
[1754441548328,0.4481,3578.7,3578.6,2.79438886]
[1754441548747,1.4625,3578.7,3578.6,2.79438886]
[1754441550865,4.42112052,3578.7,3577.0,2.7956388]
[1754441551156,4.39593872,3578.6,3578.0,2.79482994]
[1754441551308,2.19704925,3578.5,3576.3,2.79612801]
[1754441551514,0.14,3577.9,3577.5,2.79524807]
[1754441551858,1.4615,3577.8,3577.6,7.18116726]
[1754441552017,1.4615,3577.7,3577.5,4.386]
[1754441552350,1.4615,3577.6,3577.5,10.18122781]
[1754441552511,1.4615,3577.6,3577.5,7.386]
[1754441552851,1.4615,3577.6,3577.5,10.18124807]
[1754441553046,1.0144,3577.6,3577.5,7.386]
[1754441553214,1.4615,3577.6,3577.5,10.18124807]
[1754441553417,1.4615,3577.6,3577.5,5.79524807]
[1754441553821,1.4615,3577.6,3577.5,10.17924807]
[1754441555362,1.4615,3577.6,3577.5,2.79524807]
[1754441556028,1.4615,3577.6,3577.4,2.79529484]
[1754441556353,1.4615,3577.6,3577.2,2.79547421]
[1754441556354,1.4615,3577.5,3577.2,4.38]
[1754441556574,1.1544,3577.4,3576.8,0.14]
[1754441556862,2.79559586,3577.1,3576.4,2.79605559]
[1754441557063,4.25716411,3577.0,3576.3,7.17616502]
[1754441557354,0.14,3576.5,3576.4,2.79610781]
[1754441557518,1.0144,3576.7,3576.6,2.79595146]
[1754441557958,1.4615,3576.7,3576.3,0.14]
[1754441558162,0.4471,3576.6,3576.4,2.79610538]
[1754441558343,0.14,3576.5,3576.4,2.79610538]
[1754441558655,1.6015,3576.5,3576.4,2.79610538]
[1754441559621,1.0144,3577.0,3576.4,1.00143047]
[1754441559830,1.0144,3577.0,3576.9,2.79566304]
[1754441560649,0.14,3577.1,3577.0,2.7956388]
[1754441560818,1.1544,3577.4,3577.3,2.79540435]
[1754441561036,1.6015,3577.4,3577.1,2.79554261]
[1754441561296,1.1544,3577.4,3577.1,2.79554261]
[1754441561450,1.4615,3577.3,3577.2,2.7954825]
[1754441562636,0.001,3577.6,3577.5,2.79524807]
[1754441562836,0.9437,3577.5,3577.2,3.9465567]
[1754441563144,1.4159,3577.4,3577.2,0.14]
[1754441563338,1.4159,3577.4,3576.6,2.7959049]
[1754441563339,1.4159,3577.3,3576.2,2.7962392]
[1754441563572,1.5559,3577.2,3576.8,2.79577442]
[1754441563877,1.4159,3577.1,3576.8,2.79577442]
[1754441564196,1.4159,3577.0,3576.8,2.79577442]
[1754441564372,0.14,3577.2,3576.8,2.79577442]
[1754441564538,0.001,3577.6,3576.6,4.521]
[1754441564539,1.4159,3576.9,3576.6,2.79587965]
[1754441564862,1.5559,3576.8,3576.7,2.7958706]
[1754441565035,1.5559,3576.8,3576.6,2.79593127]
[1754441565240,0.14,3576.8,3576.7,2.79587329]
[1754441565673,0.14,3576.8,3576.4,2.79610781]
[1754441565877,1.4159,3576.7,3576.5,2.79602042]
[1754441566041,1.4159,3576.6,3576.5,2.79602042]
[1754441566238,1.4159,3576.6,3576.4,2.79609008]
[1754441566461,2.7954161,3577.3,3576.4,2.79609008]
[1754441566462,0.6122,3576.5,3576.4,2.79609008]
[1754441566669,1.5559,3576.5,3576.4,2.79609008]
[1754441566869,0.9437,3576.8,3576.7,2.79587329]
[1754441567070,0.14,3577.1,3577.0,2.79556153]
[1754441568489,1.0837,3577.1,3577.0,2.79556153]
[1754441568796,0.14,3577.1,3577.0,2.79556153]
[1754441568999,0.001,3577.6,3577.4,2.79532621]
[1754441569159,0.001,3577.6,3577.5,2.79524807]
[1754441569661,0.9447,3577.6,3577.5,2.79524807]
[1754441570002,0.001,3577.6,3577.5,2.79524807]
[1754441570206,0.001,3577.6,3577.4,2.79530598]
[1754441570506,0.9437,3577.5,3577.4,2.79530598]
[1754441570654,0.001,3577.6,3577.5,2.79524807]
[1754441571059,0.001,3577.6,3577.5,7.31524807]
[1754441571351,0.001,3577.6,3577.5,8.47710348]
[1754441571655,0.001,3577.6,3577.5,11.47710348]
[1754441571879,0.04,3578.9,3578.6,2.79438886]
[1754441572982,0.9447,3578.7,3578.6,2.79438886]
[1754441573860,0.001,3578.7,3578.6,2.79438886]
[1754441575283,0.9447,3578.7,3578.6,2.79438886]
[1754441575990,1.4169,3578.7,3578.5,7.1744566]
[1754441576201,0.9437,3578.6,3578.5,2.7944566]
[1754441576359,0.001,3578.7,3578.6,2.79438886]
[1754441577984,0.001,3578.7,3578.6,6.34438886]
[1754441578902,0.001,3578.7,3578.6,5.79438886]
[1754441579970,0.001,3578.7,3578.6,6.78212936]
[1754441580561,0.001,3578.7,3578.6,6.92212936]
[1754441581875,0.04,3578.9,3578.8,6.3442327]
[1754441582189,0.001,3579.4,3579.3,6.34384237]
[1754441582361,0.001,3579.4,3579.3,10.72184237]
[1754441582564,0.001,3579.4,3579.3,11.31384237]
[1754441582770,0.001,3579.5,3579.4,6.34376431]
[1754441583009,0.9447,3580.3,3579.8,0.55]
[1754441583307,0.001,3580.8,3580.5,2.79290601]
[1754441583910,0.4732,3580.6,3580.5,2.79290601]
[1754441584285,0.4732,3580.6,3580.5,5.93290601]
[1754441584617,0.6132,3580.6,3580.1,3.0]
[1754441584770,0.141,3580.6,3580.5,2.79290601]
[1754441584970,0.141,3580.6,3580.1,0.14]
[1754441585171,0.9437,3580.5,3580.4,2.79292484]
[1754441585371,1.4159,3580.5,3580.2,2.79314004]
[1754441585571,0.14,3580.3,3580.1,7.17020814]
[1754441585871,1.4159,3580.2,3580.1,10.17020814]
[1754441586174,0.14,3580.3,3580.2,2.79314004]
[1754441586566,1.5559,3580.3,3580.0,2.79321837]
[1754441586773,0.29569,3580.3,3580.1,2.79321771]
[1754441586995,0.14,3580.1,3580.0,5.79324151]
[1754441587231,0.14,3580.1,3579.9,5.79335289]
[1754441587408,0.14,3580.1,3580.0,2.79329608]
[1754441588206,1.5559,3580.1,3580.0,2.79329608]
[1754441588719,0.14,3580.1,3580.0,2.79329608]
[1754441589004,0.001,3580.6,3580.5,2.79290601]
[1754441589372,0.001,3580.6,3580.5,2.93290601]
[1754441590004,1.4169,3580.6,3580.5,2.79290601]
[1754441590687,0.4732,3580.6,3580.5,2.79290601]
[1754441591071,0.001,3580.6,3580.5,2.79290601]
[1754441591687,0.001,3580.6,3580.5,7.30990601]
[1754441593784,0.001,3580.6,3580.5,12.73719623]
[1754441594487,1e-08,3580.6,3580.5,12.73719623]
[1754441594687,1e-08,3580.6,3580.5,12.83319623]
[1754441594886,1e-08,3580.9,3580.8,0.55]
[1754441595214,1e-08,3580.9,3580.8,11.34714495]
[1754441595415,1e-08,3580.9,3580.8,11.48714495]
[1754441595578,1e-08,3580.9,3580.8,12.35414495]
[1754441595781,1e-08,3580.9,3580.8,12.45014495]
[1754441596217,0.03488404,3583.3,3580.8,12.45014495]
[1754441596218,2.79057833,3583.5,3582.4,2.79138469]
[1754441596418,0.9572,3582.6,3582.3,0.1392]
[1754441596620,0.9572,3582.6,3582.1,2.79160099]
[1754441596621,0.1392,3582.5,3582.1,2.79160099]
[1754441596779,0.1392,3582.5,3582.1,2.79165852]
[1754441596982,0.9572,3582.4,3582.2,2.79158059]
[1754441597180,0.9572,3582.4,3582.3,2.79150266]
[1754441597609,0.9572,3582.4,3582.2,2.79157246]
[1754441597805,0.9572,3582.4,3582.3,2.79150266]
[1754441598005,0.1392,3582.5,3582.4,2.79142474]
[1754441598286,0.5798,3582.5,3582.4,2.79142474]
[1754441598508,1.3978,3582.5,3582.4,2.79142474]
[1754441598711,0.9572,3582.5,3582.4,2.79142474]
[1754441598911,0.1392,3582.6,3582.5,2.79134682]
[1754441599227,0.04,3582.9,3582.8,2.79111309]
[1754441599523,0.04,3582.9,3582.8,6.34111309]
[1754441600300,0.04,3582.9,3582.8,7.64231309]
[1754441600514,0.04,3582.9,3582.8,8.65260331]
[1754441601630,1e-08,3582.9,3582.8,8.65260331]
[1754441602526,1e-08,3582.9,3582.8,13.02760331]
[1754441602734,1e-08,3582.9,3582.8,8.65260331]
[1754441603029,1e-08,3582.9,3582.8,7.35140331]
[1754441603191,1e-08,3582.9,3582.8,11.72740331]
[1754441604319,1e-08,3582.9,3582.8,6.34111309]
[1754441604519,1e-08,3582.9,3582.8,10.71511309]
[1754441606313,1.39780001,3582.9,3582.8,3.55]
[1754441606517,1.39780001,3582.9,3582.8,7.373]
[1754441606715,1.39780001,3582.9,3582.8,5.79111309]
[1754441607019,1.39780001,3582.9,3582.8,10.16411309]
[1754441607344,1.39780001,3582.9,3582.8,3.0]
[1754441607549,1.39780001,3582.9,3582.8,4.373]
[1754441608050,1.39780001,3582.9,3582.8,7.373]
[1754441608404,1.39780001,3582.9,3582.8,4.373]
[1754441609234,1.39780001,3582.9,3582.6,4.373]
[1754441609411,1.3978,3582.8,3582.6,4.373]
[1754441609611,1.3978,3582.7,3582.6,4.373]
[1754441609920,1.3978,3582.7,3582.5,4.5122]
[1754441610240,1.3978,3582.6,3582.5,7.5122]
[1754441610602,1.3978,3582.6,3582.5,4.373]
[1754441611411,1e-08,3582.9,3582.5,4.373]
[1754441611615,1.3978,3582.8,3582.5,7.16428706]
[1754441611812,1e-08,3582.9,3582.6,4.373]
[1754441612015,1.3978,3582.7,3582.6,4.373]
[1754441612738,1.537,3582.7,3582.2,2.93072747]
[1754441613039,1.3978,3582.6,3582.3,7.373]
[1754441613337,1.3978,3582.5,3582.3,7.373]
[1754441613504,0.1392,3582.7,3582.3,7.373]
[1754441613705,1.3978,3582.6,3582.1,4.373]
[1754441613954,0.1392,3582.4,3581.9,0.1392]
[1754441614108,0.1392,3582.4,3582.1,4.373]
[1754441614305,1.3978,3582.3,3582.1,4.373]
[1754441614604,1.3978,3582.2,3582.1,4.373]
[1754441617041,1.3978,3582.2,3581.9,0.1392]
[1754441617203,0.1392,3582.4,3582.0,4.373]
[1754441617204,2.79145165,3582.4,3582.0,4.373]
[1754441617404,1.3978,3582.1,3581.7,0.1392]
[1754441617606,2.93095207,3582.0,3581.5,3.14]
[1754441617827,0.1392,3581.7,3581.4,7.16514277]
[1754441618035,1.3978,3581.6,3581.4,7.373]
[1754441618218,0.9572,3581.5,3581.4,7.373]
[1754441618602,1.5378,3581.5,3581.4,4.373]
[1754441619219,1.5378,3581.5,3581.4,7.16520416]
[1754441619661,0.9572,3581.8,3581.7,2.79197029]
[1754441620263,0.1392,3581.8,3581.7,5.79197029]
[1754441620410,0.1392,3582.2,3582.1,2.79161097]
[1754441620915,1.65412417,3582.2,3579.7,0.8398]
[1754441621115,1.65412417,3582.2,3580.2,4.373]
[1754441621116,2.79223467,3581.4,3580.2,4.373]
[1754441621351,2.79225257,3581.4,3580.7,2.79269859]
[1754441621506,1.3978,3581.3,3580.7,2.79269859]
[1754441621867,1.3978,3581.2,3580.8,2.7926693]
[1754441622441,1.3978,3581.1,3580.8,2.7926693]
[1754441622744,1.3912,3581.0,3580.8,2.7926693]
[1754441622922,0.4657,3581.0,3580.7,2.79272115]
[1754441623119,0.9255,3580.9,3580.6,2.79280185]
[1754441623320,0.9255,3580.9,3580.7,2.79273519]
[1754441623321,0.4657,3580.9,3580.7,2.79273519]
[1754441623631,0.9255,3580.8,3580.7,2.79273519]
[1754441623830,0.9255,3580.8,3580.6,2.79280486]
[1754441624774,0.9255,3580.8,3580.7,2.79275002]
[1754441626304,0.9255,3580.8,3580.5,0.002]
[1754441626305,1.3912,3580.8,3580.5,0.002]
[1754441626648,0.4657,3580.7,3580.5,0.002]
[1754441626840,0.4657,3580.7,3580.5,3.002]
[1754441627045,0.4657,3580.6,3580.5,3.002]
[1754441627250,1.3912,3580.6,3580.5,0.002]
[1754441630062,1.42611035,3580.6,3580.5,0.002]
[1754441630223,2.12726378,3580.6,3580.5,0.002]
[1754441630623,4.92009179,3580.6,3580.5,0.002]
[1754441630826,4.21893836,3580.6,3580.5,0.002]
[1754441631147,1.56611035,3580.6,3580.5,0.002]
[1754441631352,1.5312,3580.6,3580.5,0.002]
[1754441632828,1.56611035,3580.6,3580.5,0.002]
[1754441633054,2.71866749,3580.6,3580.5,0.002]
[1754441633848,2.68375714,3580.6,3580.5,0.002]
[1754441634064,2.71866749,3580.6,3580.5,0.002]
[1754441634363,5.5114955,3580.6,3580.5,0.002]
[1754441634552,5.47658515,3580.6,3580.5,0.002]
[1754441635667,9.02658515,3580.6,3580.5,0.002]
[1754441635867,2.79314004,3580.2,3580.1,0.04]
[1754441636084,10.34205429,3580.2,3580.1,0.04]
[1754441636292,10.30714004,3580.2,3580.1,0.04]
[1754441636587,11.69834004,3580.2,3580.1,0.04]
[1754441642757,12.24834004,3580.2,3580.1,0.04]
[1754441642958,13.92559562,3580.2,3580.1,0.04]
[1754441643667,14.18076129,3580.2,3580.1,0.04]
[1754441644883,13.63176129,3580.2,3580.1,0.04]
[1754441645201,13.90266129,3580.2,3580.1,0.04]
[1754441646697,13.64749562,3580.2,3580.1,0.04]
[1754441646899,13.90284174,3580.2,3580.1,0.04]
[1754441647360,14.01469374,3580.2,3580.1,0.04]
[1754441649300,13.46469374,3580.2,3580.1,0.04]
[1754441650005,14.01469374,3580.2,3580.1,0.04]
[1754441650795,24.86041774,3580.2,3580.1,0.04]
[1754441652003,7.97759374,3580.2,3580.1,0.04]
[1754441652207,10.56348616,3580.2,3580.1,0.04]
[1754441652810,12.51748616,3580.2,3580.1,0.04]
[1754441653176,12.62933216,3580.2,3580.1,0.04]
[1754441653682,10.67533216,3580.2,3580.1,0.04]
[1754441654226,4.76934612,3580.2,3580.1,0.04]
[1754441654377,7.56248616,3580.2,3580.1,0.04]
[1754441654772,7.56363062,3580.2,3580.1,0.04]
[1754441654973,4.77049058,3580.2,3580.1,0.04]
[1754441655885,0.14,3580.2,3580.1,0.04]
[1754441656087,4.77060883,3580.2,3580.1,1.3048]
[1754441656532,4.77065977,3580.2,3580.1,1.3048]
[1754441656679,0.39665977,3580.2,3580.1,4.09801806]
[1754441656885,0.14,3580.2,3580.1,4.09801806]
[1754441657089,4.514,3580.2,3580.1,4.78735094]
[1754441657907,0.14,3580.2,3580.1,4.78735094]
[1754441658117,4.514,3580.2,3580.1,4.78735094]
[1754441658277,4.514,3580.2,3580.1,1.99413288]
[1754441658477,4.514,3580.2,3580.1,4.78735094]
[1754441659088,4.514,3580.2,3580.1,1.99413288]
[1754441659285,4.514,3580.2,3580.1,0.04]
[1754441659488,7.30714004,3580.2,3580.1,0.04]
[1754441660018,7.56389926,3580.2,3580.1,0.04]
[1754441660402,7.30714004,3580.2,3580.1,0.04]
[1754441660591,7.56393789,3580.2,3580.1,0.04]
[1754441661077,4.76979785,3580.2,3580.1,0.04]
[1754441661689,4.76979785,3580.2,3580.1,0.8259]
[1754441662118,4.76979785,3580.2,3580.1,1.2938]
[1754441662414,4.76979785,3580.2,3580.1,0.04]
[1754441662613,8.31921656,3580.2,3580.1,0.04]
[1754441662802,7.56293789,3580.2,3580.1,0.04]
[1754441663382,4.76979785,3580.2,3580.1,0.04]
[1754441664082,7.56293789,3580.2,3580.1,0.04]
[1754441664320,4.76979785,3580.2,3580.1,0.04]
[1754441664624,0.39679785,3580.2,3580.1,0.042]
[1754441664820,4.77079785,3580.2,3580.1,4.77746067]
[1754441664990,0.141,3580.2,3580.1,4.77746067]
[1754441665309,0.001,3580.2,3580.1,4.77746067]
[1754441668095,0.001,3580.2,3580.1,7.77746067]
[1754441668297,0.001,3580.6,3580.5,6.34290601]
[1754441668502,0.001,3580.6,3580.5,7.04670601]
[1754441668727,0.001,3580.6,3580.5,5.79290601]
[1754441669032,0.001,3580.6,3580.4,2.79296691]
[1754441669232,0.001,3580.6,3580.2,4.33230464]
[1754441669233,1.19769693,3580.6,3580.2,2.79313441]
[1754441669399,0.14,3580.4,3580.2,2.79313441]
[1754441669892,0.14,3580.4,3580.1,2.83520018]
[1754441670096,0.14,3580.2,3580.1,2.83520018]
[1754441670290,0.14,3580.2,3580.1,3.1189202]
[1754441670513,0.14,3580.2,3580.1,0.32572002]
[1754441670703,0.14,3580.2,3580.1,0.042]
[1754441670904,0.14,3580.2,3580.1,2.83521806]
[1754441671219,0.14,3580.2,3580.1,0.042]
[1754441672396,0.14,3580.2,3580.1,2.83521806]
[1754441672721,1.544,3580.2,3580.1,0.042]
[1754441672916,2.41481104,3580.2,3580.1,0.042]
[1754441673217,1.544,3580.2,3580.1,0.042]
[1754441673418,4.33714004,3580.2,3580.1,0.042]
[1754441673607,4.37205429,3580.2,3580.1,0.042]
[1754441674385,4.33714004,3580.2,3580.1,0.042]
[1754441674588,0.14,3580.2,3580.1,0.042]
[1754441674990,4.511,3580.2,3580.1,0.042]
[1754441675783,5.451,3580.2,3580.1,0.042]
[1754441676820,4.511,3580.2,3580.1,0.042]
[1754441677823,0.001,3580.6,3580.2,2.79314004]
[1754441678009,4.371,3580.6,3580.3,1.2538]
[1754441678323,0.14,3580.4,3580.3,2.79306203]
[1754441678890,0.14,3580.4,3580.3,4.04686203]
[1754441679103,0.14,3580.4,3580.3,4.73506338]
[1754441680421,0.001,3580.6,3580.5,2.79290601]
[1754441680824,0.001,3580.6,3580.5,4.04670601]
[1754441681532,0.001,3580.6,3580.5,2.79290601]
[1754441682503,0.001,3580.6,3580.5,4.04670601]
[1754441682703,0.001,3580.6,3580.5,3.55970295]
[1754441682905,0.001,3580.6,3580.5,2.79290601]
[1754441683231,0.001,3580.6,3580.3,0.14]
[1754441683232,1.3268,3580.6,3580.3,0.14]
[1754441683403,0.001,3580.6,3580.5,2.79290601]
[1754441683800,1.4668,3580.6,3580.4,2.79296815]
[1754441684000,0.8567,3580.5,3580.4,2.79296815]
[1754441684200,0.9967,3580.5,3580.4,2.79296815]
[1754441685236,0.9967,3580.5,3580.1,0.042]
[1754441685437,0.9967,3580.5,3580.3,2.7930447]
[1754441685602,5.7297123,3580.4,3580.1,0.042]
[1754441685933,0.14,3580.2,3580.1,0.042]
[1754441686434,1.72285016,3580.2,3580.1,0.042]
[1754441686732,4.5159902,3580.2,3580.1,0.042]
[1754441688205,4.25894004,3580.2,3580.1,0.042]
[1754441688407,5.41964285,3580.2,3580.1,0.042]
[1754441689605,5.41964285,3580.2,3579.7,0.002]
[1754441689606,2.79345214,3579.8,3579.7,0.002]
[1754441689908,7.33737029,3579.8,3579.7,0.002]
[1754441690102,8.62825214,3579.8,3579.7,0.002]
[1754441690308,13.04973528,3579.8,3579.7,0.002]
[1754441690511,6.34353018,3579.7,3579.6,1e-08]
[1754441690705,18.51505418,3579.7,3579.6,1e-08]
[1754441690904,6.34376431,3579.4,3579.3,1e-08]
[1754441691137,10.85276431,3579.4,3579.3,1e-08]
[1754441691318,13.95514084,3579.4,3579.3,1e-08]
[1754441692611,13.40414084,3579.4,3579.3,1e-08]
[1754441693021,5.93376431,3579.4,3579.3,1e-08]
[1754441693219,11.15946431,3579.4,3579.3,1e-08]
[1754441693423,11.62856431,3579.4,3579.3,1e-08]
[1754441693823,0.14,3579.4,3579.3,1e-08]
[1754441694111,4.369,3579.5,3579.3,0.46350001]
[1754441694422,4.369,3579.4,3579.3,1e-08]
[1754441694609,7.5627,3580.4,3579.8,2.79343699]
[1754441694809,5.70853086,3580.3,3579.6,0.7532]
[1754441695055,4.369,3580.3,3579.6,0.7532]
[1754441695414,4.369,3580.3,3579.8,2.79343849]
[1754441695767,5.2257,3580.3,3579.8,2.79343849]
[1754441696327,0.25682094,3580.2,3579.8,2.79343849]
[1754441698046,0.25682094,3580.1,3579.8,2.79343849]
[1754441698219,4.62482094,3580.0,3579.8,2.79343849]
[1754441698417,0.25682094,3579.9,3579.8,2.79343849]
[1754441698837,4.368,3579.9,3579.8,2.79343849]
[1754441699045,4.62482094,3579.9,3579.8,2.79343849]
[1754441700034,4.368,3579.9,3579.8,2.79343849]
[1754441700233,6.706,3580.4,3579.8,1.2167]
[1754441700559,0.001,3580.5,3580.4,2.79298402]
[1754441700763,4.369,3580.5,3580.4,2.79298402]
[1754441701462,5.2257,3580.5,3580.2,2.79312435]
[1754441701622,5.2257,3580.5,3580.1,2.79320049]
[1754441701820,0.8567,3580.4,3580.1,2.79320049]
[1754441702263,7.16190631,3580.5,3579.4,3.0]
[1754441702558,1.84847,3580.3,3579.8,2.79339041]
[1754441702727,4.367,3580.2,3579.5,2.79368626]
[1754441702927,4.367,3580.2,3580.0,2.79328428]
[1754441703239,4.367,3580.1,3580.0,4.00999608]
[1754441703435,0.001,3580.5,3580.4,2.79298402]
[1754441703829,4.368,3580.5,3580.4,2.79298402]
[1754441704050,4.508,3580.5,3580.4,4.00968402]
[1754441704748,0.141,3580.5,3580.4,2.79298402]
[1754441705157,0.141,3580.5,3580.2,2.79310936]
[1754441705462,0.14,3580.3,3580.2,2.79310936]
[1754441705682,0.14,3580.3,3580.1,2.79319534]
[1754441705841,4.367,3580.3,3579.3,3.54700917]
[1754441706166,0.14,3579.9,3579.8,2.79345214]
[1754441707232,5.2237,3579.9,3579.3,1e-08]
[1754441707436,5.6928,3579.9,3579.3,1e-08]
[1754441707633,2.79330322,3580.0,3579.3,1e-08]
[1754441707941,0.001,3580.5,3580.1,2.79316864]
[1754441708148,0.001,3580.5,3580.2,2.79308098]
[1754441708365,0.001,3580.5,3580.4,2.79298402]
[1754441708565,0.001,3580.5,3579.8,1.2167]
[1754441708871,0.001,3580.5,3580.4,2.79298402]
[1754441709066,0.001,3580.5,3579.8,1.91773066]
[1754441709244,0.001,3580.5,3580.2,2.79308619]
[1754441709963,0.001,3580.5,3579.7,0.7532]
[1754441710164,4.367,3580.5,3580.1,2.79319939]
[1754441710366,5.2237,3580.5,3579.7,0.7532]
[1754441710570,5.2237,3580.5,3580.1,2.79315368]
[1754441710867,5.2237,3580.5,3579.0,0.002]
[1754441710868,2.79330601,3580.0,3579.0,0.002]
[1754441711084,4.40091717,3579.9,3579.3,2.79382894]
[1754441711303,5.2227,3579.9,3579.3,1e-08]
[1754441711483,5.2227,3579.9,3579.3,2.79381097]
[1754441711683,6.35052852,3579.9,3579.3,1e-08]
[1754441711873,2.79345214,3579.8,3579.3,1e-08]
[1754441712202,4.11930446,3579.8,3579.3,1e-08]
[1754441712401,0.8567,3579.7,3579.3,1e-08]
[1754441712588,0.8567,3579.7,3579.3,2.79383449]
[1754441713557,8.28723148,3579.9,3579.4,2.79371394]
[1754441713558,5.49382852,3579.9,3579.4,2.79371394]
[1754441713897,5.34982852,3579.9,3579.4,2.74371394]
[1754441714079,2.79331082,3580.0,3579.3,1e-08]
[1754441714080,4.366,3580.0,3579.8,2.7933886]
[1754441714279,4.366,3580.0,3579.9,2.79337411]
[1754441714596,4.366,3580.2,3580.0,2.79328056]
[1754441714780,4.366,3580.3,3580.0,2.79328056]
[1754441715000,4.366,3580.3,3579.3,0.44480001]
[1754441715206,7.58697475,3580.3,3579.6,2.79353392]
[1754441715407,2.79343669,3579.9,3579.3,1e-08]
[1754441715603,4.366,3579.8,3579.3,2.79383903]
[1754441716022,1.2812,3579.7,3579.3,2.79383903]
[1754441716396,0.8533,3579.6,3579.3,2.79383903]
[1754441716601,0.8533,3579.6,3579.3,1e-08]
[1754441716795,0.8533,3579.6,3579.3,2.79383131]
[1754441717303,0.14,3579.4,3579.3,2.79383131]
[1754441718599,4.365,3579.8,3579.3,1.76098234]
[1754441718795,0.14,3579.6,3579.5,2.79368626]
[1754441719121,0.14,3579.6,3579.5,3.99168626]
[1754441719500,0.14,3579.6,3579.5,2.79368626]
[1754441719732,0.9933,3579.6,3579.3,1e-08]
[1754441719896,0.8533,3579.5,3579.3,1e-08]
[1754441720102,1.2812,3579.5,3579.3,1e-08]
[1754441720324,2.79361498,3579.6,3579.3,1e-08]
[1754441720325,1.2812,3579.4,3579.3,1e-08]
[1754441720689,4.07496431,3579.4,3579.3,1e-08]
[1754441720890,2.40455793,3579.4,3579.3,1e-08]
[1754441721218,1.2812,3579.4,3579.3,1e-08]
[1754441721801,4.365,3579.6,3579.3,1e-08]
[1754441722394,0.8533,3579.5,3579.3,1e-08]
[1754441725644,0.8533,3579.8,3579.3,2.79379487]
[1754441725833,4.365,3579.7,3579.3,1e-08]
[1754441726250,4.365,3579.7,3579.3,2.79379593]
[1754441726422,4.365,3579.7,3579.3,1e-08]
[1754441726623,5.2183,3579.7,3579.3,1e-08]